[Event "2nd Bundesliga Nord 2024-25"]
[Site "Germany"]
[Date "2024.11.30"]
[Round "2.15"]
[White "Holtel, Jasper"]
[Black "Pauly, Carlo"]
[Result "1-0"]
[Annotator "ChessBase"]
[ECO "E68"]
[WhiteElo "2344"]
[BlackElo "2319"]
[PlyCount "65"]
[EventDate "2024.11.29"]
[EventType "team-tourn"]
[EventCountry "GER"]
[SourceTitle "playchess.com"]
[Source "ChessBase"]
[SourceQuality "1"]
[TimeControl "40/5400+30:1800+30"]

1. c4 {[%emt 0:00:03]} Nf6 {[%emt 0:00:08]} 2. g3 {[%emt 0:00:06]} g6 {[%emt 0:00:07]} 3. Bg2 {[%emt 0:00:05]} Bg7 {[%emt 0:00:05]} 4. Nc3 {[%emt 0:00:09]} O-O {[%emt 0:00:11]} 5. d4 {[%emt 0:00:27]} d6 {[%emt 0:00:10]} 6. h3 {[%emt 0:00:09]} Nbd7 {[%emt 0:03:55]} 7. e4 {[%emt 0:02:39]} e5 {[%emt 0:02:10]} 8. Nf3 {[%emt 0:00:07]} exd4 {[%emt 0:01:54]} 9. Nxd4 {[%emt 0:00:54]} Re8 {[%emt 0:00:17]} 10. O-O {[%emt 0:00:12]} Nc5 {[%emt 0:00:24]} 11. Re1 {[%emt 0:00:22]} a5 {[%emt 0:00:19]} 12. Ndb5 {[%emt 0:07:36]} Bd7 {[%emt 0:06:36]} 13. Qc2 {[%emt 0:17:57]} Bxb5 {[%emt 0:20:04]} 14. cxb5 {[%emt 0:02:32]} Nfd7 {[%emt 0:10:13]} 15. Be3 {[%emt 0:03:27]} h5 {[%emt 0:02:04]} 16. Rad1 {[%emt 0:14:00]} h4 {[%emt 0:01:42]} 17. g4 {[%emt 0:02:47]} g5 {[%emt 0:03:00]} 18. Qc1 {[%emt 0:11:34]} Ne6 {[%emt 0:03:22]} 19. e5 {[%emt 0:02:18]} Nxe5 {[%emt 0:14:59]} 20. Bxb7 {[%emt 0:01:48]} Qf6 {[%emt 0:05:26]} 21. Nd5 {[%emt 0:07:53]} Nf3+ {[%emt 0:03:18]} 22. Kh1 {[%emt 0:01:22]} Qe5 {[%emt 0:06:27]} 23. Ne7+ {[%emt 0:04:21]} Rxe7 {[%emt 0:00:12]} 24. Bxf3 {[%emt 0:00:05]} Rae8 {[%emt 0:02:16]} 25. Bc6 {[%emt 0:05:13]} Rf8 {[%emt 0:04:48]} 26. Bxg5 {[%emt 0:01:56]} Qxg5 {[%emt 0:03:25]} 27. Qxg5 {[%emt 0:00:08]} Nxg5 {[%emt 0:00:02]} 28. Rxe7 {[%emt 0:00:11]} Nxh3 {[%emt 0:00:08]} 29. Rd2 {[%emt 0:07:37]} f5 {[%emt 0:03:20]} 30. gxf5 {[%emt 0:00:59]} Rxf5 {[%emt 0:00:16]} 31. Rxc7 {[%emt 0:04:05]} Nxf2+ {[%emt 0:01:16]} 32. Kg1 {[%emt 0:00:34]} h3 {[%emt 0:00:34]} 33. Rxg7+ {[%emt 0:00:46]} 1-0

[Event "2nd Bundesliga Nord 2024-25"]
[Site "Germany"]
[Date "2024.11.30"]
[Round "2.16"]
[White "Marcziter, Dmitrii"]
[Black "Haug, Havard"]
[Result "0-1"]
[Annotator "ChessBase"]
[ECO "E00"]
[WhiteElo "2187"]
[BlackElo "2352"]
[PlyCount "74"]
[EventDate "2024.11.29"]
[EventType "team-tourn"]
[EventCountry "GER"]
[SourceTitle "playchess.com"]
[Source "ChessBase"]
[SourceQuality "1"]
[TimeControl "40/5400+30:1800+30"]

1. d4 {[%emt 0:00:07]} d5 {[%emt 0:00:25]} 2. c4 {[%emt 0:00:17]} e6 {[%emt 0:00:07]} 3. a3 {[%emt 0:00:13]} Nf6 {[%emt 0:02:46]} 4. Nc3 {[%emt 0:01:45]} Be7 {[%emt 0:00:44]} 5. Bg5 {[%emt 0:00:16]} O-O {[%emt 0:04:30]} 6. e3 {[%emt 0:02:17]} h6 {[%emt 0:07:06]} 7. Bh4 {[%emt 0:00:28]} Re8 {[%emt 0:04:22]} 8. Qc2 {[%emt 0:01:28]} a5 {[%emt 0:04:20]} 9. cxd5 {[%emt 0:01:47]} exd5 {[%emt 0:00:41]} 10. Bd3 {[%emt 0:00:13]} c6 {[%emt 0:00:20]} 11. Nge2 {[%emt 0:02:46]} Na6 {[%emt 0:00:19]} 12. O-O {[%emt 0:01:15]} Nc7 {[%emt 0:00:08]} 13. f3 {[%emt 0:00:44]} c5 {[%emt 0:00:10]} 14. Bf2 {[%emt 0:01:38]} c4 {[%emt 0:01:04]} 15. Bf5 {[%emt 0:00:53]} b5 {[%emt 0:00:08]} 16. Ng3 {[%emt 0:01:58]} b4 {[%emt 0:13:46]} 17. axb4 {[%emt 0:12:26]} axb4 {[%emt 0:00:27]} 18. Nce2 {[%emt 0:01:33]} b3 {[%emt 0:02:17]} 19. Qd2 {[%emt 0:05:56]} Be6 {[%emt 0:08:24]} 20. Bxe6 {[%emt 0:09:09]} Nxe6 {[%emt 0:00:22]} 21. h3 {[%emt 0:02:48]} Qb6 {[%emt 0:02:22]} 22. e4 {[%emt 0:02:30]} Bb4 {[%emt 0:00:47]} 23. Nc3 {[%emt 0:08:12]} Bxc3 {[%emt 0:01:13]} 24. Qxc3 {[%emt 0:01:23]} Nf4 {[%emt 0:00:52]} 25. Qd2 {[%emt 0:11:16]} Nd3 {[%emt 0:01:39]} 26. e5 {[%emt 0:03:05]} Nd7 {[%emt 0:00:28]} 27. Nf5 {[%emt 0:00:56]} Qb4 {[%emt 0:08:16]} 28. Qe2 {[%emt 0:03:18]} Nf8 {[%emt 0:07:05]} 29. Be3 {[%emt 0:03:32]} Ra2 {[%emt 0:10:55]} 30. Rab1 {[%emt 0:02:11]} Qc3 {[%emt 0:04:49]} 31. f4 {[%emt 0:02:57]} Rxb2 {[%emt 0:00:32]} 32. Rxb2 {[%emt 0:00:08]} Nxb2 {[%emt 0:00:29]} 33. Bd2 {[%emt 0:09:40]} Qd3 {[%emt 0:01:39]} 34. Qg4 {[%emt 0:00:12]} Ng6 {[%emt 0:00:43]} 35. Nxh6+ {[%emt 0:00:10]} gxh6 {[%emt 0:01:23]} 36. f5 {[%emt 0:00:07]} h5 {[%emt 0:01:43]} 37. fxg6 {[%emt 0:01:21]} Qxf1+ {[%emt 0:00:02]} 0-1

[Event "2nd Bundesliga Nord 2024-25"]
[Site "Germany"]
[Date "2024.12.01"]
[Round "3.1"]
[White "Halvax, Georg"]
[Black "Fromm, Marius"]
[Result "1/2-1/2"]
[Annotator "TA"]
[ECO "D30"]
[WhiteElo "2434"]
[BlackElo "2452"]
[PlyCount "64"]
[EventDate "2024.11.29"]
[EventType "team-tourn"]
[EventCountry "GER"]
[SourceTitle "playchess.com"]
[Source "ChessBase"]
[SourceQuality "1"]
[TimeControl "40/5400+30:1800+30"]

{[%evp 9,64,-9,0,1,0,-17,-8,-29,-14,-20,-17,-9,-21,-16,0,0,-9,-12,-10,-23,-8,-19,-12,-17,-8,-19,-12,-12,-5,-11,-2,-8,0,-10,-18,-10,-8,-12,-19,-17,-7,-12,-11,-5,0,0,0,0,0,0,15,15,15,15,15,15,10]} 1. d4 {[%emt 0:00:06]} e6 {[%emt 0:02:49]} 2. c4 {[%emt 0:00:21]} Nf6 {[%emt 0:00:13]} 3. Nf3 {[%emt 0:00:19]} d5 {[%emt 0:01:34]} 4. e3 {[%emt 0:00:16]} Be7 {[%emt 0:04:54]} 5. a3 {[%emt 0:00:27]} O-O {[%emt 0:00:55]} 6. Nbd2 {[%emt 0:00:24]} b6 {[%emt 0:00:29]} 7. b4 {[%emt 0:00:15]} c5 {[%emt 0:01:56]} 8. bxc5 {[%emt 0:04:59]} bxc5 {[%emt 0:00:05]} 9. Bb2 {[%emt 0:01:11]} Bb7 {[%emt 0:02:17]} 10. Be2 {[%emt 0:02:40]} Nbd7 {[%emt 0:00:33]} 11. O-O {[%emt 0:01:32]} Rb8 {[%emt 0:07:12]} 12. Qc2 {[%emt 0:05:20]} dxc4 {[%emt 0:06:41]} 13. Nxc4 {[%emt 0:01:45]} Be4 {[%emt 0:02:35]} (13... Qc7 {looks sharper.} 14. dxc5 Bd5 15. Nfd2 Bxc5 16. Rfc1 Rfc8) 14. Qd2 {[%emt 0:08:30]} Nb6 {[%emt 0:05:29]} 15. Nxb6 {[%emt 0:04:46]} Qxb6 {[%emt 0:00:53]} 16. Bc3 {[%emt 0:00:35]} Nd5 {[%emt 0:03:53]} 17. dxc5 {[%emt 0:06:42]} Bxc5 {[%emt 0:01:14][%cal Rd5e3]} 18. Bd4 {[%emt 0:00:50]} Bxd4 {[%emt 0:16:32]} 19. Qxd4 {[%emt 0:05:06]} Qxd4 {[%emt 0:00:08]} 20. Nxd4 {[%emt 0:00:11]} Nc3 {[%emt 0:00:20] And now ...e5 would win.} 21. Bf3 {[%emt 0:01:19]} Bxf3 {[%emt 0:03:26]} 22. gxf3 {[%emt 0:01:07]} Rfc8 {[%emt 0:05:23]} 23. Kg2 {[%emt 0:01:35]} e5 {[%emt 0:04:25]} 24. Nf5 {[%emt 0:01:10]} Kf8 {[%emt 0:05:28] Inhibits Ne7.} 25. Rfc1 {[%emt 0:01:25]} g6 {[%emt 0:17:28]} 26. Nd6 {[%emt 0:02:17]} Rc6 {[%emt 0:00:03]} 27. Ne4 {[%emt 0:00:36]} Rbc8 {[%emt 0:00:13]} 28. Nxc3 {[%emt 0:02:37]} Rxc3 {[%emt 0:00:04]} 29. Rcb1 {[%emt 0:03:59]} Rd8 {[%emt 0:04:02]} 30. Rb5 {[%emt 0:01:15]} Re8 {[%emt 0:02:27]} 31. Ra5 {[%emt 0:00:13]} Re7 {[%emt 0:00:20]} 32. Rd1 {[%emt 0:01:32]} Kg7 {[%emt 0:00:24]} 1/2-1/2

[Event "2nd Bundesliga Nord 2024-25"]
[Site "Germany"]
[Date "2024.12.01"]
[Round "3.2"]
[White "Olsen, Filip Boe"]
[Black "Gaponenko, Inna"]
[Result "1/2-1/2"]
[Annotator "RC"]
[ECO "D02"]
[WhiteElo "2470"]
[BlackElo "2341"]
[PlyCount "44"]
[EventDate "2024.11.29"]
[EventType "team-tourn"]
[EventCountry "GER"]
[SourceTitle "playchess.com"]
[Source "ChessBase"]
[SourceQuality "1"]
[TimeControl "40/5400+30:1800+30"]

1. Nf3 {[%emt 0:00:21]} d5 {[%emt 0:00:08]} 2. g3 {[%emt 0:00:28]} c5 {[%emt 0:00:09]} 3. Bg2 {[%emt 0:00:27]} Nc6 {[%emt 0:00:06]} 4. d4 {[%emt 0:01:41]} e6 {[%emt 0:01:04]} 5. O-O {[%emt 0:00:30]} Nf6 {[%emt 0:00:02]} 6. a3 {[%emt 0:03:58]} cxd4 {[%emt 0:13:42]} 7. Nxd4 {[%emt 0:00:24]} Qb6 {[%emt 0:00:05]} 8. Nxc6 {[%emt 0:06:21]} bxc6 {[%emt 0:00:45]} 9. c4 {[%emt 0:02:15]} Be7 {[%emt 0:06:16]} 10. b4 {[%emt 0:10:16]} a5 {[%emt 0:01:04]} 11. Be3 {[%emt 0:14:49]} Qa6 {[%emt 0:22:29]} 12. cxd5 {[%emt 0:05:59]} cxd5 {[%emt 0:00:46]} 13. Bd4 {[%emt 0:00:22]} O-O {[%emt 0:02:59]} 14. Nd2 {[%emt 0:15:37]} Bd7 {[%emt 0:01:46]} 15. e4 {[%emt 0:18:07]} Qd3 {[%emt 0:01:33]} 16. Bc5 {[%emt 0:03:12]} Bxc5 {[%emt 0:11:29]} 17. bxc5 {[%emt 0:00:02]} Rfc8 {[%emt 0:00:20]} 18. exd5 {[%emt 0:09:43]} exd5 {[%emt 0:00:07]} 19. Nb3 {[%emt 0:00:12]} Qxd1 {[%emt 0:15:58]} 20. Rfxd1 {[%emt 0:00:02]} a4 {[%emt 0:00:48]} 21. Nc1 {[%emt 0:00:07]} Rxc5 {[%emt 0:00:11]} 22. Nd3 {[%emt 0:00:01]} Rc3 {[%emt 0:00:40]} 1/2-1/2

[Event "2nd Bundesliga Nord 2024-25"]
[Site "Germany"]
[Date "2024.12.01"]
[Round "3.3"]
[White "Schlecht, Daniel"]
[Black "Pajeken, Jakob Leon"]
[Result "1/2-1/2"]
[Annotator "TA"]
[ECO "D37"]
[WhiteElo "2372"]
[BlackElo "2417"]
[PlyCount "59"]
[EventDate "2024.11.29"]
[EventType "team-tourn"]
[EventCountry "GER"]
[SourceTitle "playchess.com"]
[Source "ChessBase"]
[SourceQuality "1"]
[TimeControl "40/5400+30:1800+30"]

{[%evp 9,59,22,31,22,30,25,29,27,32,26,25,23,28,26,20,25,22,19,24,20,32,33,27,11,30,29,22,10,12,18,24,14,37,22,44,60,83,87,103,100,90,0,0,0,0,0,0,0,0,0,0,0]} 1. Nf3 {[%emt 0:00:03]} Nf6 {[%emt 0:00:54]} 2. c4 {[%emt 0:03:15]} e6 {[%emt 0:00:26]} 3. d4 {[%emt 0:01:03]} a6 {[%emt 0:02:24]} 4. Nc3 {[%emt 0:00:20]} d5 {[%emt 0:00:04]} 5. cxd5 {[%emt 0:00:14]} exd5 {[%emt 0:00:03]} 6. Bg5 {[%emt 0:00:21]} Be6 {[%emt 0:00:06]} 7. e3 {[%emt 0:00:18]} Nbd7 {[%emt 0:00:11]} 8. Bd3 {[%emt 0:00:29] White has an edge.} Bd6 {[%emt 0:00:18]} 9. O-O {[%emt 0:04:03]} c6 {[%emt 0:01:08]} 10. Bf4 {[%emt 0:00:25]} Qc7 {[%emt 0:00:16]} 11. Qd2 {[%emt 0:01:15]} O-O {[%emt 0:02:12]} 12. h3 {[%emt 0:00:58]} Rfe8 {[%emt 0:01:38]} 13. Rfe1 {[%emt 0:06:17]} g6 {[%emt 0:01:54]} 14. Rac1 {[%emt 0:04:09]} Nh5 {[%emt 0:02:01]} 15. Bxd6 {[%emt 0:01:25]} Qxd6 {[%emt 0:00:05]} 16. b3 {[%emt 0:06:00]} Rad8 {[%emt 0:07:00]} 17. Na4 {[%emt 0:15:31]} Nhf6 {[%emt 0:04:59]} 18. Qa5 {[%emt 0:06:43]} Ne4 {[%emt 0:06:41]} 19. Bxe4 {[%emt 0:00:45]} dxe4 {[%emt 0:00:10]} 20. Nd2 {[%emt 0:00:18]} Bd5 {[%emt 0:08:48]} 21. Nc4 {[%emt 0:07:06]} Bxc4 {[%emt 0:02:37]} 22. bxc4 {[%emt 0:00:36]} c5 {[%emt 0:06:18]} 23. dxc5 {[%emt 0:04:31]} Qe7 {[%emt 0:01:58] [#]} 24. Red1 $1 {[%emt 0:18:45]} Ne5 {[%emt 0:00:35][%cal Oe5c4,Bd7e5,Be5f3,Bf3h2][%mdl 32]} 25. Nb2 {[%emt 0:02:01]} (25. Nb6 $16) 25... Qg5 $11 {[%emt 0:12:09] The position is equal.} 26. Rd5 {[%emt 0:04:17]} Nf3+ {[%emt 0:03:18]} 27. Kf1 {[%emt 0:03:30]} Nh2+ {[%emt 0:02:55]} 28. Kg1 $1 {[%emt 0:00:12]} Nf3+ {[%emt 0:00:48]} 29. Kf1 {[%emt 0:00:04]} Nh2+ {[%emt 0:04:02]} 30. Kg1 $1 {[%emt 0:00:05] Weighted Error Value: White=0.06 (flawless) /Black=0.06 (flawless) .  Mistake:       	White=1     	---        OK:         	White=10    	Black=6      Strong:       	White=3     	---} 1/2-1/2

[Event "2nd Bundesliga Nord 2024-25"]
[Site "Germany"]
[Date "2024.12.01"]
[Round "3.4"]
[White "Arndt, Magnus"]
[Black "Bashylina, Luisa"]
[Result "1/2-1/2"]
[Annotator "TA"]
[ECO "A15"]
[WhiteElo "2388"]
[BlackElo "2105"]
[PlyCount "62"]
[EventDate "2024.11.29"]
[EventType "team-tourn"]
[EventCountry "GER"]
[SourceTitle "playchess.com"]
[Source "ChessBase"]
[SourceQuality "1"]
[TimeControl "40/5400+30:1800+30"]

{[%evp 10,62,15,36,31,26,30,27,56,37,39,43,69,81,54,42,31,19,15,4,12,10,17,27,32,26,34,6,19,-17,0,0,0,0,0,-5,-3,-43,0,0,0,-16,0,0,0,0,0,0,0,0,0,0,0,-9,0]} 1. Nf3 {[%emt 0:00:04]} Nf6 {[%emt 0:00:05]} 2. b3 {[%emt 0:00:06]} g6 {[%emt 0:00:06]} 3. Bb2 {[%emt 0:00:04]} Bg7 {[%emt 0:00:03]} 4. g3 {[%emt 0:00:07]} d5 {[%emt 0:00:31]} 5. c4 {[%emt 0:00:12]} O-O {[%emt 0:00:37]} 6. cxd5 {[%emt 0:04:58]} Qxd5 {[%emt 0:01:08]} 7. Bg2 {[%emt 0:02:14]} c5 {[%emt 0:02:23]} 8. Nc3 {[%emt 0:04:25]} Qd8 {[%emt 0:03:55]} 9. Na4 {[%emt 0:17:29]} Na6 {[%emt 0:07:38]} 10. Rc1 {[%emt 0:10:40]} Nd7 {[%emt 0:01:43]} 11. Bxg7 {[%emt 0:14:26]} Kxg7 {[%emt 0:00:16]} 12. d4 {[%emt 0:07:49][%cal Rd4c5]} Qa5+ {[%emt 0:03:16]} 13. Qd2 {[%emt 0:01:28]} Qxd2+ {[%emt 0:00:42]} 14. Kxd2 {[%emt 0:00:09][%cal Ra4c5]} Rd8 $1 {[%emt 0:03:16]} 15. Rhd1 {[%emt 0:02:23]} b5 {[%emt 0:11:37][%cal Bb7b5,Bb5b4][%mdl 32]} 16. Nc3 {[%emt 0:02:37]} b4 {[%emt 0:01:20]} 17. Nb5 {[%emt 0:05:43][%cal Of3e5] Ne5! poses a challenge} Bb7 {[%emt 0:02:05]} 18. dxc5 {[%emt 0:07:30]} Naxc5 {[%emt 0:06:37][%cal Ba6c5,Bc5e4,Be4c3][%mdl 32]} 19. Nh4 {[%emt 0:02:43]} Bxg2 {[%emt 0:10:02]} 20. Nxg2 {[%emt 0:00:04]} a6 {[%emt 0:00:41]} (20... Rab8 $5 21. Nd4 $8 (21. Nxa7 $2 {perishes.} Rb6 $19) 21... Rbc8 $11) 21. Nd4 {[%emt 0:01:25]} Ne4+ {[%emt 0:01:17]} 22. Ke1 {[%emt 0:00:33]} Nc3 {[%emt 0:05:34]} 23. Rd2 {[%emt 0:01:55]} (23. Nc6 $5 Nxd1 24. Nxd8 Nxf2 (24... Nc3 25. Nc6 $11) 25. Nxf7 $11) 23... Nf6 {[%emt 0:00:38]} 24. f3 {[%emt 0:01:45] Prevents Nfe4} a5 {[%emt 0:02:56]} 25. a4 {[%emt 0:02:14]} e5 {[%emt 0:01:11]} 26. Nb5 $1 {[%emt 0:04:15]} Rxd2 {[%emt 0:33:53]} 27. Kxd2 {[%emt 0:06:42]} Rd8+ {[%emt 0:00:00]} 28. Ke1 {[%emt 0:00:00]} Nxb5 {[%emt 0:00:00]} 29. axb5 {[%emt 0:00:00]} Rd5 {[%emt 0:00:00]} 30. Ne3 {[%emt 0:00:00]} Rxb5 {[%emt 0:00:00]} 31. Ra1 {[%emt 0:00:00]} Nd7 {[%emt 0:00:00]} 1/2-1/2

[Event "2nd Bundesliga Nord 2024-25"]
[Site "Germany"]
[Date "2024.12.01"]
[Round "3.5"]
[White "Schaefer, Markus"]
[Black "Ermitsch, Magnus"]
[Result "1-0"]
[Annotator "TA"]
[ECO "B85"]
[WhiteElo "2344"]
[BlackElo "2399"]
[PlyCount "69"]
[EventDate "2024.11.29"]
[EventType "team-tourn"]
[EventCountry "GER"]
[SourceTitle "playchess.com"]
[Source "ChessBase"]
[SourceQuality "1"]
[TimeControl "40/5400+30:1800+30"]

{[%evp 27,68,43,49,0,38,39,42,41,33,33,147,140,149,47,68,56,62,59,53,45,52,39,39,39,297,293,357,302,356,345,752,741,705,597,1348,1300,29993,29994,29997,29998,29998,29999,29999]} 1. e4 {[%emt 0:00:03]} c5 {[%emt 0:00:15]} 2. Nf3 {[%emt 0:00:07]} e6 {[%emt 0:00:06]} 3. d4 {[%emt 0:00:27]} cxd4 {[%emt 0:00:20]} 4. Nxd4 {[%emt 0:00:05]} Nc6 {[%emt 0:00:15]} 5. Nc3 {[%emt 0:00:21]} Qc7 {[%emt 0:00:08]} 6. Be2 {[%emt 0:01:13]} Nf6 {[%emt 0:00:20]} 7. Be3 {[%emt 0:04:04]} a6 {[%emt 0:00:07]} 8. O-O {[%emt 0:00:51]} Be7 {[%emt 0:00:08]} 9. f4 {[%emt 0:01:05]} d6 {[%emt 0:00:11]} 10. a4 {[%emt 0:01:09]} O-O {[%emt 0:00:26]} 11. Kh1 {[%emt 0:00:25]} Bd7 {[%emt 0:01:54]} 12. Nb3 {[%emt 0:03:01]} Rac8 {[%emt 0:06:07]} 13. a5 {[%emt 0:03:37]} Rfe8 {[%emt 0:02:22]} 14. Bf3 {[%emt 0:09:32]} Nb4 {[%emt 0:06:27]} 15. Qd2 {[%emt 0:08:30]} (15. Rf2 $14) 15... Bc6 {[%emt 0:06:17]} 16. Nd4 {[%emt 0:07:48]} d5 {[%emt 0:03:15]} 17. e5 {[%emt 0:02:10]} Ne4 {[%emt 0:00:49]} 18. Qe2 {[%emt 0:04:32]} Bc5 {[%emt 0:34:18]} ({Black should play} 18... Nc5 $14) 19. Bxe4 $16 {[%emt 0:14:01]} dxe4 {[%emt 0:00:16]} 20. Nxc6 {[%emt 0:00:15]} (20. Nxe6 $1 $16 Rxe6 21. Bxc5) 20... Qxc6 $14 {[%emt 0:01:38]} 21. Bxc5 {[%emt 0:00:06]} Qxc5 {[%emt 0:00:05]} 22. Nxe4 {[%emt 0:00:14][%cal Bc3e4,Be4d6,Bd6f5,Bf5h6,Bh6g4,Bg4f6][%mdl 32]} Qxc2 {[%emt 0:01:16]} 23. Qf3 {[%emt 0:00:54]} Rc7 {[%emt 0:06:19][%cal Oc2d3]} 24. Nd6 {[%emt 0:02:55]} Rd8 {[%emt 0:04:58]} 25. f5 {[%emt 0:08:29]} exf5 $2 {[%emt 0:01:17][%mdl 8192]} (25... Nc6 $14) 26. Nxf5 $18 {[%emt 0:00:39]} Nd3 {[%emt 0:22:27]} 27. Qg3 {[%emt 0:09:48][%csl Gf5][%cal Rg3g7]} g6 {[%emt 0:00:08][%cal Od3f2]} 28. Qg5 {[%emt 0:01:04]} Rcd7 $2 {[%emt 0:01:46]} (28... Rf8 29. Ne7+ Rxe7 30. Qxe7 Qxb2) 29. Nh6+ {[%emt 0:03:39]} Kg7 {[%emt 0:00:21]} 30. Ng4 {[%emt 0:00:09] and Qh6+ should not be overlooked} Kf8 {[%emt 0:00:42][%cal Bg7f8,Bf8g8,Bg8h8][%mdl 32]} 31. e6 {[%emt 0:01:01][%cal Og5d8] Intending Qxd8+! and mate.} h5 {[%emt 0:00:08] [#]} 32. Qxd8+ $3 {[%emt 0:01:54][%mdl 512]} Rxd8 {[%emt 0:00:12]} (32... Kg7 33. exd7) 33. Rxf7+ {[%emt 0:00:03]} Kg8 {[%emt 0:00:06]} 34. Nf6+ {[%emt 0:00:04]} Kh8 {[%emt 0:00:03]} 35. Rh7# {[%emt 0:00:04]} 1-0

[Event "2nd Bundesliga Nord 2024-25"]
[Site "Germany"]
[Date "2024.12.01"]
[Round "3.6"]
[White "Kopylov, Daniel"]
[Black "Zolfagharian, Kevin"]
[Result "1-0"]
[Annotator "TA"]
[ECO "D41"]
[WhiteElo "2369"]
[BlackElo "2215"]
[PlyCount "75"]
[EventDate "2024.11.29"]
[EventType "team-tourn"]
[EventCountry "GER"]
[SourceTitle "playchess.com"]
[Source "ChessBase"]
[SourceQuality "1"]
[TimeControl "40/5400+30:1800+30"]

{[%evp 11,75,17,23,21,29,-10,45,47,23,40,37,35,22,0,2,-14,-13,-26,-27,-16,-21,-31,0,-7,0,0,0,1,6,8,6,7,5,0,0,0,8,5,32,30,34,39,66,8,9,9,8,9,10,5,15,0,38,54,124,8,8,6,9,12,375,361,29997,29998,29998,29999]} 1. d4 {[%emt 0:00:04]} Nf6 {[%emt 0:06:11]} 2. Nf3 {[%emt 0:00:31]} e6 {[%emt 0:00:05]} 3. c4 {[%emt 0:00:10]} d5 {[%emt 0:00:10]} 4. Nc3 {[%emt 0:00:36]} c5 {[%emt 0:00:05]} 5. cxd5 {[%emt 0:03:28]} cxd4 {[%emt 0:00:07]} 6. Qxd4 {[%emt 0:07:27]} exd5 {[%emt 0:00:37]} 7. e4 {[%emt 0:01:11]} dxe4 {[%emt 0:00:57]} 8. Qxd8+ {[%emt 0:00:32]} Kxd8 {[%emt 0:00:08]} 9. Ng5 {[%emt 0:00:06][%csl LRe4,LRf7] White is slightly better.} Be6 {[%emt 0:00:50]} 10. Nxe6+ {[%emt 0:00:26]} fxe6 {[%emt 0:00:03]} 11. Bc4 {[%emt 0:00:22]} Ke7 {[%emt 0:00:08]} 12. Bg5 {[%emt 0:01:42][%cal Oe1g1][%mdl 1024] White has compensation.} Kf7 {[%emt 0:01:28]} 13. O-O {[%emt 0:03:56]} Nbd7 {[%emt 0:02:15]} 14. Rfe1 {[%emt 0:05:57]} Bb4 {[%emt 0:05:17]} 15. Bd2 {[%emt 0:05:37] A strong pair of Bishops.} Rac8 {[%emt 0:23:44]} 16. Bb5 {[%emt 0:06:43]} Rhd8 {[%emt 0:13:59]} 17. Nxe4 {[%emt 0:04:01]} Bxd2 {[%emt 0:00:54]} 18. Nxd2 {[%emt 0:00:41]} Rc2 {[%emt 0:01:43]} 19. Nc4 {[%emt 0:15:37]} a6 {[%emt 0:11:51]} 20. Nd6+ {[%emt 0:06:57]} Ke7 {[%emt 0:02:10]} 21. Nf5+ {[%emt 0:00:09]} Kf7 {[%emt 0:01:01]} 22. Nd6+ {[%emt 0:01:10]} Ke7 {[%emt 0:01:00]} 23. Nf5+ {[%emt 0:00:08]} Kf7 {[%emt 0:00:20]} 24. Nd4 {[%emt 0:00:43][%csl LRc2,LRe6] [#] Hoping for Bxd7.} Rxb2 {[%emt 0:08:06]} (24... Rcc8 $5 25. Bf1 Ne5 $16) 25. Nxe6 {[%emt 0:02:06]} Rc8 {[%emt 0:01:14]} 26. Ba4 {[%emt 0:01:11]} Nc5 {[%emt 0:07:22] Wards off Bb3} 27. Nxc5 {[%emt 0:06:17]} (27. Rac1 $14 b6 28. h3) 27... Rxc5 $11 {[%emt 0:00:01]} 28. Bb3+ {[%emt 0:00:20]} Kg6 {[%emt 0:00:23]} 29. Re7 {[%emt 0:01:41]} b5 $1 {[%emt 0:02:27]} 30. Ra7 {[%emt 0:06:45]} Rc6 {[%emt 0:04:12]} 31. h3 {[%emt 0:03:40]} Rd6 {[%emt 0:02:45]} 32. Re1 {[%emt 0:03:18]} Kh6 {[%emt 0:04:05]} ({Black should play} 32... Rdd2 $14) 33. Re3 {[%emt 0:04:54]} (33. g4 $16) 33... Rdd2 {[%emt 0:00:42]} 34. Rg3 {[%emt 0:06:49]} g6 {[%emt 0:00:29]} 35. Rf3 {[%emt 0:00:20]} Ne4 {[%emt 0:00:11][%mdl 8192] [#]} (35... Rd7 $11 36. Rxa6 Ne4) 36. Bg8 $1 $18 {[%emt 0:00:34]} Rxf2 $2 {[%emt 0:00:57]} (36... g5 $18 37. Rxh7+ (37. Rxa6+ Kg7 $14) (37. Bxh7 g4 $18) 37... Kg6) 37. Rxh7+ {[%emt 0:00:29]} Kg5 {[%emt 0:00:02]} 38. h4+ {[%emt 0:00:06] Weighted Error Value: White=0.12 (very precise) /Black=0.44.  Loses game:     	---       	Black=1      Mistake:       	White=2     	Black=2      Inaccurate:     	---       	Black=4      OK:         	White=15    	Black=11     Best:        	White=2     	Black=4      Strong:       	White=1     	Black=1} 1-0